Cogmind - Beta 14 @@@ ROGUE MODE // 2025.05.05 @ 23:29:12 Player: obl-vn Result: Self-destructed Performance ------------- Evolutions (9) 4500 Regions Visited (21) 4200 Robots Destroyed (146) 730 Value Destroyed (5927) 5927 Prototype IDs (35) 700 Alien Tech Used (0) 0 Bonus (2682) 2682 TOTAL SCORE: 18739 Bonus ------- High Alert Combat Kills 609 Follower Combat Kills 173 Entered Garrisons 600 Used RIF Installer 1000 Aligned with FarCom 300 Cogmind --------- Core Integrity 161/1600 Matter 79/300 Energy 99/100 System Corruption 8% Temperature Cool (0) Movement Core (50) Location -1/Access Parts ------- > --- POWER (2) -------- (None) > --- PROPULSION (6) --- (None) > --- UTILITY (15) ----- Improved System Shield > --- WEAPON (2) ------- (None) > --- INVENTORY (5) ---- Advanced System Shield Enhanced Nova Cannon Peak State ------------ > --- POWER ------------ Light Antimatter Reactor > --- PROPULSION ------- Improved VTOL Module Cooled VTOL Module Cooled VTOL Module Nuclear Pulse Thruster Cooled Nuclear Pulse Thruster Cooled Q-thruster > --- UTILITY ---------- Transmission Jammer Improved Reaction Control System Cloak of Protection Hacking Suite Hacking Suite Hacking Suite System Shield System Shield System Shield System Shield Improved System Shield > --- WEAPON ----------- Enhanced Nova Cannon > --- INVENTORY -------- Advanced Weight Redist. System Sensor Drone Bay Gatling Laser [Rating: 96] Favorites ----------- Power Light Nuclear Core Engine Light Ion Engine Power Core Light Nuclear Core Reactor Light Antimatter Reactor Propulsion Light Treads Treads Light Treads Leg Aluminum Leg Wheel Compact Wheel Hover Unit Gravmag System Flight Unit Improved VTOL Module Utility Hacking Suite Device Transmission Jammer Storage High-capacity Storage Unit Processor Improved Targeting Computer Hackware Hacking Suite Protection Light Armor Plating Weapon Assault Rifle Energy Gun Medium Laser Energy Cannon EM Pulse Cannon Ballistic Gun Assault Rifle Ballistic Cannon Hypervelocity Gauss Cannon Launcher Grenade Launcher Special Weapon Remote Datajack Slashing Weapon Mining Claw Special Melee Weapon Improved Datajack Build | -11 -10 -10 -9 -9 -9 -8 -8 -8 -8 -8 -7 -7 -7 -6 -6 -6 -5 -4 -3 -2 -1 ------- Run | Yrd Mat Min Mat Min Exi Min Mat Gar Mat Gar Fac Gar Fac Fac Low Low Fac Fac Res Res Acc Slots Evolved 18 | . . . 2 . . . 2 . . . 2 . . 2 . . 2 2 2 2 2 Power 1 | . . . . . . . . . . . . . . 1 . . . . . . . Propulsion 4 | . . . . . . . 2 . . . . . . 1 . . 1 . . . . Utility 13 | . . . 2 . . . . . . . 2 . . . . . 1 2 2 2 2 Weapon . | . . . . . . . . . . . . . . . . . . . . . . Parts Attached 312 | 7 22 10 34 6 2 1 16 33 7 56 6 20 29 8 5 . 14 10 2 11 13 Power 23 | 1 1 1 1 . . . 1 1 2 4 . 2 3 1 . . 2 1 . . 2 Engine 5 | 1 1 1 . . . . 1 . . . . . 1 . . . . . . . . Core 16 | . . . 1 . . . . 1 2 4 . 2 2 1 . . 2 . . . 1 Reactor 2 | . . . . . . . . . . . . . . . . . . 1 . . 1 Propulsion 81 | 2 7 6 18 2 . . 2 10 4 7 . 8 3 4 . . 2 1 . 2 3 Treads 33 | 2 4 2 8 1 . . 1 3 4 6 . 1 . . . . . . . . 1 Leg 4 | . . . . . . . . 4 . . . . . . . . . . . . . Wheel 19 | . 3 4 9 1 . . 1 1 . . . . . . . . . . . . . Hover 1 | . . . . . . . . 1 . . . . . . . . . . . . . Flight 24 | . . . 1 . . . . 1 . 1 . 7 3 4 . . 2 1 . 2 2 Utility 92 | 2 4 . 9 4 2 . 3 1 . 8 6 4 19 3 2 . 8 7 2 3 5 Device 49 | 1 1 . 5 4 2 . 2 . . . 4 1 10 2 2 . 4 4 2 2 3 Storage 5 | 1 1 . . . . . . . . 1 1 1 . . . . . . . . . Processor 9 | . . . 2 . . . 1 1 . . . . 2 . . . 1 1 . . 1 Hackware 18 | . 1 . . . . . . . . 3 1 2 3 1 . . 3 2 . 1 1 Protection 11 | . 1 . 2 . . . . . . 4 . . 4 . . . . . . . . Artifact . | . . . . . . . . . . . . . . . . . . . . . . Weapon 116 | 2 10 3 6 . . 1 10 21 1 37 . 6 4 . 3 . 2 1 . 6 3 Energy Gun 20 | 1 6 2 1 . . . . . . . . . 2 . 3 . 2 1 . 1 1 Energy Cannon 30 | . . . 2 . . . 3 4 . 16 . . . . . . . . . 3 2 Ballistic Gun 27 | 1 2 1 3 . . 1 3 7 . 6 . 1 2 . . . . . . . . Ballistic Cannon 9 | . . . . . . . . . . 5 . 2 . . . . . . . 2 . Launcher 16 | . 1 . . . . . 3 6 . 5 . 1 . . . . . . . . . Special Weapon 2 | . . . . . . . . . . 1 . 1 . . . . . . . . . Impact Weapon . | . . . . . . . . . . . . . . . . . . . . . . Slashing Weapon 6 | . 1 . . . . . . 3 1 1 . . . . . . . . . . . Piercing Weapon . | . . . . . . . . . . . . . . . . . . . . . . Special Melee Weapon 6 | . . . . . . . 1 1 . 3 . 1 . . . . . . . . . Unidentified Prototypes 11 | . . . 4 . . . . . . 1 . . 3 . . . 1 . . 2 . Corrupted Parts 1 | . . . . . . . . 1 . . . . . . . . . . . . . System Corruption 2 | . . . . . . . . 2 . . . . . . . . . . . . . Parts Lost 70 | . 2 3 2 . . . 1 6 . 8 . 17 . . 2 . 3 . . 7 19 Power 10 | . . 1 . . . . 1 1 . 1 . 2 . . . . 1 . . . 3 Propulsion 25 | . . 1 . . . . . 4 . 1 . 6 . . 2 . 1 . . 5 5 Utility 20 | . . . . . . . . . . 3 . 4 . . . . 1 . . 2 10 Weapon 15 | . 2 1 2 . . . . 1 . 3 . 5 . . . . . . . . 1 Highest Loss Streak 14 | . 2 2 1 . . . 1 2 . 2 . 14 . . 1 . 2 . . 4 11 To Critical Strikes . | . . . . . . . . . . . . . . . . . . . . . . Average Slot Usage (%) 88 | . 99 98 99 100 100 100 98 96 100 85 90 67 76 82 73 66 71 75 71 74 51 Engine 3 | . 14 13 5 . . . . 2 . . . . 2 . . . . . . . . Core 5 | . . . 5 11 11 11 8 6 9 8 7 4 4 12 13 13 6 2 . . . Treads 11 | . 21 8 4 1 . . 8 15 30 28 23 12 . . . . . . . . . Wheel 7 | . 5 18 17 21 22 22 26 11 . . . . . . . . . . . . . Flight 6 | . . . . . . . . . . . . 8 29 31 25 20 19 21 23 23 10 Device 6 | . 3 . 6 10 11 11 6 2 . . 5 4 13 20 14 13 12 10 9 10 3 Storage 7 | . 14 14 11 11 11 11 9 9 9 9 8 5 . . . . . . . . . Processor 5 | . . . 10 11 11 11 11 15 18 4 . . 5 . . . 2 . . . 2 Hackware 14 | . 9 14 11 11 11 11 9 9 9 11 29 21 16 18 20 20 24 35 33 33 31 Protection 1 | . . . 4 . . . . . . 8 . . 1 . . . . . . . . Energy Gun 2 | . 13 2 . . . . . . . . . . . . . . 2 2 . . . Energy Cannon 3 | . . . 9 11 11 11 7 8 9 4 . . . . . . . . . . . Ballistic Gun 6 | . 12 24 12 11 11 11 6 5 8 2 . . . . . . . . . . . Peak Build Rating 96 | 7 11 12 25 25 26 22 27 28 34 50 58 56 43 55 55 42 63 70 75 96 92 Average Rating 31 | 4 8 10 18 22 23 21 24 24 30 38 53 37 34 51 48 42 53 64 70 82 64 On Entrance 34 | . 7 11 12 20 19 20 22 24 28 32 48 55 23 36 55 42 42 57 67 75 56 Naked Turns . | . . . . . . . . . . . . . . . . . . . . . . Heaviest Build 70 | 14 47 49 65 64 64 53 55 55 54 69 70 62 23 24 24 16 21 21 25 34 13 Greatest Support 114 | 40 40 40 40 32 32 32 42 60 88 114 114 114 27 26 26 17 23 34 34 44 80 Greatest Overweight (x) 4 | . 4 4 3 1 1 1 1 3 . . . 1 1 . . . . . . . 1 Average Overweight (x) . | . 1 2 1 1 1 1 1 1 . . . . . . . . . . . . . Largest Inventory Capacity 20 | 8 20 20 20 20 20 20 20 20 20 20 20 20 5 5 5 5 5 5 5 5 5 Average Capacity 14 | 5 13 20 20 20 20 20 20 20 20 20 20 14 5 5 5 5 5 5 5 5 5 Most Carried 20 | 5 19 20 20 20 20 20 20 20 20 20 20 20 5 5 5 5 5 5 5 5 5 Average Carried 13 | 3 9 19 19 19 19 20 19 19 19 19 18 13 4 5 4 5 4 3 4 3 3 Final Capacity 20 | 8 20 20 20 20 20 20 20 20 20 20 20 5 5 5 5 5 5 5 5 5 5 Final Carried 20 | 4 19 20 20 19 20 20 19 20 20 20 20 4 5 5 5 5 5 4 4 4 2 Class Distribution -------------------- 36% | Scavenger-Mutant 27% | Mutant 10% | Hacker-Sprinter 8% | Wizard-Sprinter 4% | Scavenger-Skirmisher 3% | Bothacker-Mutant 3% | Scavenger-Sprinter Dominant Class ---------------- Mutant | -10/Materials Mutant | -10/Mines Scavenger-Mutant | -9/Materials Scavenger-Mutant | -9/Mines Scavenger-Mutant | -9/Exiles Scavenger-Skirmisher | -8/Mines Scavenger-Mutant | -8/Materials Scavenger-Mutant | -8/Garrison Scavenger-Mutant | -8/Materials Mutant | -8/Garrison Bothacker-Mutant | -7/Factory Bothacker-Mutant | -7/Garrison Scavenger-Sprinter | -7/Factory Hacker-Sprinter | -6/Factory Hacker-Sprinter | -6/Lower Caves Hacker-Sprinter | -6/Lower Caves Hacker-Sprinter | -5/Factory Wizard-Sprinter | -4/Factory Wizard-Sprinter | -3/Research Wizard-Sprinter | -2/Research Wizard-Sprinter | -1/Access Resources | -11 -10 -10 -9 -9 -9 -8 -8 -8 -8 -8 -7 -7 -7 -6 -6 -6 -5 -4 -3 -2 -1 ----------- Run | Yrd Mat Min Mat Min Exi Min Mat Gar Mat Gar Fac Gar Fac Fac Low Low Fac Fac Res Res Acc Matter Collected 4800 | 266 772 216 391 85 . 27 148 693 118 1305 . 82 183 . 261 . 62 69 . 24 98 Remotely . | . . . . . . . . . . . . . . . . . . . . . . Salvage Created 4096 | 30 748 151 670 96 . 27 184 696 108 803 . 82 183 . 82 . 86 69 . 24 57 Parts 287 | 4 55 7 50 8 . 3 7 48 9 61 . 7 12 . 1 . 5 4 . 2 4 Haulers Intercepted 6 | . 2 . 2 . . . . . 1 . . . 1 . . . . . . . . Recyclers Shooed 3 | . 2 . 1 . . . . . . . . . . . . . . . . . . Parts Field Recycled . | . . . . . . . . . . . . . . . . . . . . . . Retrieved Matter . | . . . . . . . . . . . . . . . . . . . . . . Parts Self-Destructed 1 | . . . . . . . . . . . . . . . 1 . . . . . . Prevented . | . . . . . . . . . . . . . . . . . . . . . . Kills | -11 -10 -10 -9 -9 -9 -8 -8 -8 -8 -8 -7 -7 -7 -6 -6 -6 -5 -4 -3 -2 -1 ------- Run | Yrd Mat Min Mat Min Exi Min Mat Gar Mat Gar Fac Gar Fac Fac Low Low Fac Fac Res Res Acc Combat Hostiles Destroyed 118 | . 17 4 16 6 . . 6 26 1 32 . 5 4 . . . 1 . . . . Guns 46 | . 14 4 6 1 . . . 9 1 4 . 2 4 . . . 1 . . . . Cannons 35 | . . . 10 5 . . . 5 . 14 . 1 . . . . . . . . . AOE 37 | . 3 . . . . . 6 12 . 14 . 2 . . . . . . . . . Classes Destroyed 13 | 1 8 . . . . . 1 3 . . . . . . . . . . . . . Worker 6 | . 2 . . . . . 2 . . . . . . . . . . . . . 2 Builder 3 | . 2 . . . . 1 . . . . . . . . . . . . . . . Tunneler 1 | 1 . . . . . . . . . . . . . . . . . . . . . Hauler 6 | . 2 . 2 . . . . . 1 . . . 1 . . . . . . . . Recycler 2 | . 1 . 1 . . . . . . . . . . . . . . . . . . Operator 4 | . 1 . 1 . . . . . . . . . . . . . 1 . . 1 . Watcher 6 | . 2 . 1 . . . . . . . . . . . . . 1 2 . . . Swarmer 51 | . 9 . 9 6 . . . 9 . 15 . 1 2 . . . . . . . . Cutter 7 | . . . . . . . . 2 . 2 . 3 . . . . . . . . . Grunt 43 | . 8 4 7 . . . 5 11 . 7 . 1 . . . . . . . . . Sentry 7 | . . . . . . . . 1 . 6 . . . . . . . . . . . Hunter 2 | . . . . . . . 1 . 1 . . . . . . . . . . . . Programmer 8 | . . . . . . . . 3 . 2 . . 2 . . . 1 . . . . Best Kill Streak 12 | 1 5 2 8 3 . 1 5 7 1 12 . 5 2 . . . 1 1 . 1 2 Combat Bots Only 12 | . 3 2 3 3 . . 3 7 1 12 . 5 2 . . . 1 . . . . Max Kills in Single Turn 4 | 1 2 1 2 1 . 1 2 3 1 4 . 2 1 . . . 1 1 . 1 1 Gunslinging 1 | . . . 1 . . . . . . . . . . . . . . . . . . Exploded 4 | . 1 . . . . . 2 3 . 4 . 2 . . . . . . . . . Melee . | . . . . . . . . . . . . . . . . . . . . . . Uniques/NPCs Destroyed . | . . . . . . . . . . . . . . . . . . . . . . Combat | -11 -10 -10 -9 -9 -9 -8 -8 -8 -8 -8 -7 -7 -7 -6 -6 -6 -5 -4 -3 -2 -1 -------- Run | Yrd Mat Min Mat Min Exi Min Mat Gar Mat Gar Fac Gar Fac Fac Low Low Fac Fac Res Res Acc Hostile Shots Fired 989 | . 83 25 68 17 . . 12 66 22 139 . 229 20 . 27 . 17 7 2 41 214 Missed 365 | . 22 3 19 3 . . 3 21 6 37 . 92 4 . 19 . 7 6 2 18 103 Damage Taken 10118 | . 735 268 505 116 . . 206 673 283 1403 . 1876 237 . 142 . 183 21 . 687 2783 Core 2565 | . 133 49 51 31 . . 70 103 53 59 . 413 14 . . . 27 . . 123 1439 Absorbed by Shields 96 | . . . . . . . . . . . . 92 . . . . 4 . . . . Redirected to Shielding 1 | . . . . . . . . . . 1 . . . . . . . . . . . Core Remaining (%) 78 | 100 . 27 . . . 79 . . . 48 . . 39 . . 100 97 100 100 91 . Volleys Fired 406 | 2 79 16 49 12 . 3 14 39 8 92 . 18 20 . 6 . 13 9 . 21 5 Largest 2 | 2 2 2 2 2 . 1 2 2 2 2 . 2 1 . 1 . 1 1 . 1 1 Hottest 151 | 60 80 40 88 88 . 68 93 93 88 151 . 89 80 . 80 . 80 80 . 120 120 Shots Fired 611 | 4 143 31 96 24 . 3 21 60 12 122 . 21 20 . 6 . 13 9 . 21 5 Gun 351 | 4 139 31 56 12 . . 1 18 6 24 . 6 20 . 6 . 13 9 . 4 2 Cannon 209 | . . . 40 12 . 3 7 25 6 90 . 6 . . . . . . . 17 3 Launcher 42 | . 4 . . . . . 13 17 . 7 . 1 . . . . . . . . . Special 9 | . . . . . . . . . . 1 . 8 . . . . . . . . . Kinetic 289 | 2 63 31 52 12 . . 1 18 6 77 . 12 11 . . . . . . 4 . Thermal 213 | 2 64 . 44 12 . 3 3 5 . 21 . . 9 . 6 . 13 9 . 17 5 Explosive 42 | . 4 . . . . . 13 17 . 7 . 1 . . . . . . . . . Electromagnetic 58 | . 12 . . . . . 4 20 6 16 . . . . . . . . . . . Robot Hit Streak 24 | 1 16 17 21 5 . 4 15 22 24 16 . 5 16 . 8 . 15 6 . 2 4 Robot Miss Streak 5 | 1 4 2 2 2 . 1 1 1 4 2 . 4 5 . 1 . 3 2 . 3 2 Penetration Max 1 | . . . . . . . . . . 1 . . . . . . . . . . . Secondary Targets 4 | . 2 1 1 . . . . . . . . . . . . . . . . . . Max Gunslinging Chain 1 | . 1 1 1 . . . . . . . . . . . . . . . . . . Shots Hit Robots 425 | 2 99 26 67 13 . 2 16 48 7 81 . 14 15 . 6 . 13 9 . 3 4 Core Hits 270 | 1 44 9 29 7 . 1 20 49 3 47 . 21 9 . 4 . 10 10 . 3 3 Critical Kills 6 | . . 1 . . . . . 1 . 4 . . . . . . . . . . . Critical Parts Destroyed 11 | . . . . . . . . . . 9 . 2 . . . . . . . . . Critical Strikes 21 | . 2 1 1 . . . . 1 . 14 . 2 . . . . . . . . . Burn 2 | . 1 . 1 . . . . . . . . . . . . . . . . . . Destroy 17 | . . 1 . . . . . 1 . 13 . 2 . . . . . . . . . Blast 1 | . . . . . . . . . . 1 . . . . . . . . . . . Corrupt 1 | . 1 . . . . . . . . . . . . . . . . . . . . Melee Attacks 28 | . 3 . . . . . . 9 2 13 . 1 . . . . . . . . . Impact . | . . . . . . . . . . . . . . . . . . . . . . Slashing 17 | . 3 . . . . . . 5 2 7 . . . . . . . . . . . Piercing . | . . . . . . . . . . . . . . . . . . . . . . Sneak Attacks 7 | . . . . . . . . 4 . 3 . . . . . . . . . . . Combat Hostiles . | . . . . . . . . . . . . . . . . . . . . . . Follow-up Attacks . | . . . . . . . . . . . . . . . . . . . . . . Damage Inflicted 10350 | 21 1487 355 1102 240 . 40 916 1945 128 2608 . 316 366 . 152 . 298 201 . 44 131 Guns 4077 | 21 1212 355 370 42 . . 18 340 78 396 . 142 366 . 152 . 298 201 . 43 43 Cannons 3259 | . . . 732 198 . 40 121 492 50 1494 . 44 . . . . . . . . 88 Explosions 2826 | . 275 . . . . . 777 1023 . 621 . 130 . . . . . . . . . Melee 187 | . . . . . . . . 90 . 97 . . . . . . . . . . . Ramming 1 | . . . . . . . . . . . . . . . . . . . . 1 . Kinetic 3457 | . 557 355 331 42 . . 18 340 78 1316 . 186 234 . . . . . . . . Thermal 3042 | 21 543 . 771 198 . 40 42 129 . 341 . . 132 . 152 . 298 201 . 43 131 Explosive 2798 | . 247 . . . . . 777 1023 . 621 . 130 . . . . . . . . . Electromagnetic 865 | . 140 . . . . . 79 363 50 233 . . . . . . . . . . . Impact . | . . . . . . . . . . . . . . . . . . . . . . Slashing 187 | . . . . . . . . 90 . 97 . . . . . . . . . . . Piercing . | . . . . . . . . . . . . . . . . . . . . . . Highest Corruption 8 | . . . . . . . 1 3 3 4 . . 2 . . . 2 . . 7 8 Average Corruption 2 | . . . . . . . 1 2 3 3 . . 1 . . . 1 . . 4 7 Corruption Purged 3 | . . . . . . . 1 . . . . . . . . . 2 . . . . Corruption Blocked . | . . . . . . . . . . . . . . . . . . . . . . Effects 72 | . . . . . . . . 11 3 37 . . 8 . . . 2 . . 5 6 Message Errors 24 | . . . . . . . . 5 2 11 . . 1 . . . . . . 3 2 Matter Fused 13 | . . . . . . . . 2 . 7 . . 3 . . . . . . . 1 Heat Flow Errors 12 | . . . . . . . . 2 1 5 . . 1 . . . 1 . . 2 . Energy Discharges 6 | . . . . . . . . 1 . 2 . . 2 . . . . . . . 1 Parts Fused 2 | . . . . . . . . . . 2 . . . . . . . . . . . Data Loss (minor) 7 | . . . . . . . . . . 5 . . 1 . . . . . . . 1 Data Loss (major) 3 | . . . . . . . . . . 1 . . . . . . 1 . . . 1 Alerts 2 | . . . . . . . . 1 . 1 . . . . . . . . . . . Weapon Failures 3 | . . . . . . . . . . 3 . . . . . . . . . . . Overload Shots . | . . . . . . . . . . . . . . . . . . . . . . Overflow Damage 193 | . 7 . 16 . . . . 44 . 126 . . . . . . . . . . . Projectiles 78 | . . . 16 . . . . . . 62 . . . . . . . . . . . Explosions 69 | . 7 . . . . . . 20 . 42 . . . . . . . . . . . Melee 46 | . . . . . . . . 24 . 22 . . . . . . . . . . . Knockbacks 5 | . . . . . . . . . . 5 . . . . . . . . . . . Impact . | . . . . . . . . . . . . . . . . . . . . . . Kinetic 5 | . . . . . . . . . . 5 . . . . . . . . . . . Secondary . | . . . . . . . . . . . . . . . . . . . . . . Self-Inflicted Damage 194 | . 87 . . . . . 38 46 . . . 23 . . . . . . . . . Shots 11 | . 4 . . . . . 2 4 . . . 1 . . . . . . . . . Rammed 1 | . . . . . . . . . . . . . . . . . . . . 1 . Targets Rammed 1 | . . . . . . . . . . . . . . . . . . . . 1 . Kicked . | . . . . . . . . . . . . . . . . . . . . . . Crushed . | . . . . . . . . . . . . . . . . . . . . . . Highest Temperature 371 | . 177 2 360 154 . 26 61 241 239 369 . 143 161 200 185 . 253 169 26 371 58 Average Temperature 83 | . 61 2 97 68 . 14 27 63 82 115 . 48 61 66 46 . 95 51 17 135 26 Received Heat Transfer 2637 | . 270 150 192 . . . 63 198 162 486 . 939 . . 9 . 6 . . 27 135 Effects 7 | . . . . . . . . . . 5 . . . . . . 1 . . 1 . Shutdowns 1 | . . . . . . . . . . . . . . . . . . . . 1 . Energy Bleed 2 | . . . . . . . . . . 1 . . . . . . 1 . . . . Interference 1 | . . . . . . . . . . 1 . . . . . . . . . . . Short Circuit 2 | . . . . . . . . . . 2 . . . . . . . . . . . Damage (minor) 1 | . . . . . . . . . . 1 . . . . . . . . . . . Siege Activations . | . . . . . . . . . . . . . . . . . . . . . . Robots Corrupted . | . . . . . . . . . . . . . . . . . . . . . . Combat Hostiles . | . . . . . . . . . . . . . . . . . . . . . . Parts Fried 2 | . . . . . . . . 2 . . . . . . . . . . . . . Impact Corruptions . | . . . . . . . . . . . . . . . . . . . . . . Robots Melted . | . . . . . . . . . . . . . . . . . . . . . . Combat Hostiles . | . . . . . . . . . . . . . . . . . . . . . . Parts Melted 12 | . 3 . . . . . . . . 3 . . 1 . . . 4 1 . . . Heat Transferred 5854 | 50 1451 . 1406 333 . 74 74 147 . 370 . . 275 . 350 . 600 450 . 100 174 Parts Sabotaged . | . . . . . . . . . . . . . . . . . . . . . . Parts Stolen . | . . . . . . . . . . . . . . . . . . . . . . Parts Stripped . | . . . . . . . . . . . . . . . . . . . . . . Power Chain Reactions 1 | . 1 . . . . . . . . . . . . . . . . . . . . Alert | -11 -10 -10 -9 -9 -9 -8 -8 -8 -8 -8 -7 -7 -7 -6 -6 -6 -5 -4 -3 -2 -1 ------- Run | Yrd Mat Min Mat Min Exi Min Mat Gar Mat Gar Fac Gar Fac Fac Low Low Fac Fac Res Res Acc Peak Influence 1557 | 5 206 94 272 305 . 5 137 928 520 1557 816 692 438 84 . . 241 103 30 198 268 Initial 816 | . 3 34 . 105 . . . 42 452 299 816 571 363 24 . . 76 21 . 16 103 Average 281 | 2 67 53 133 212 . 1 43 463 488 878 816 615 269 60 . . 85 48 8 117 91 Maximum Alert Level 4 | . 1 . 1 1 . . . 3 2 4 3 2 2 . . . 1 . . . 1 Low Security (%) 61 | 100 94 100 76 74 . 100 100 23 . . . . 26 100 . . 97 100 100 100 89 Level 1 10 | . 5 . 23 25 . . . 17 . 4 . . 51 . . . 2 . . . 10 Level 2 15 | . . . . . . . . 37 100 30 . 100 21 . . . . . . . . Level 3 7 | . . . . . . . . 21 . 27 100 . . . . . . . . . . Level 4 5 | . . . . . . . . . . 37 . . . . . . . . . . . Level 5 . | . . . . . . . . . . . . . . . . . . . . . . High Security . | . . . . . . . . . . . . . . . . . . . . . . Max Security . | . . . . . . . . . . . . . . . . . . . . . . Squads Dispatched 19 | . 3 . 1 . . 1 1 . 3 . . . 2 1 . . 2 3 . 1 1 Investigation 6 | . 2 . . . . . . . 1 . . . 1 1 . . . 1 . . . Extermination 2 | . . . . . . . . . . . . . 1 . . . . 1 . . . Reinforcement 10 | . 1 . 1 . . 1 1 . 1 . . . . . . . 2 1 . 1 1 Assault . | . . . . . . . . . . . . . . . . . . . . . . Garrison 1 | . . . . . . . . . 1 . . . . . . . . . . . . Intercept . | . . . . . . . . . . . . . . . . . . . . . . Searches Triggered . | . . . . . . . . . . . . . . . . . . . . . . Construction Impeded 1 | . . . . . . 1 . . . . . . . . . . . . . . . Haulers Reinforced . | . . . . . . . . . . . . . . . . . . . . . . Active Scanning Responses . | . . . . . . . . . . . . . . . . . . . . . . Cargo Convoy Interrupts . | . . . . . . . . . . . . . . . . . . . . . . Stealth | -11 -10 -10 -9 -9 -9 -8 -8 -8 -8 -8 -7 -7 -7 -6 -6 -6 -5 -4 -3 -2 -1 --------- Run | Yrd Mat Min Mat Min Exi Min Mat Gar Mat Gar Fac Gar Fac Fac Low Low Fac Fac Res Res Acc Distress Signals 8 | . . . 1 . . . . . . . . . 1 . . . 1 . . 2 3 Communications Jammed 48 | . . . . . . . . . . . . . . . . . 13 . 3 21 11 Distress Signals 48 | . . . . . . . . . . . . . . . . . 13 . 3 21 11 Times Spotted 288 | . 27 4 24 10 . . 8 26 7 38 . 27 7 3 10 . 14 6 3 24 50 Peak Tracking Total 21 | . 3 2 6 4 . . 3 5 8 5 . 18 3 2 5 . 5 3 3 19 21 Tactical Retreats 30 | . . . 3 2 . . . 1 . 2 . 3 1 . 4 . 3 2 . 1 8 Traps | -11 -10 -10 -9 -9 -9 -8 -8 -8 -8 -8 -7 -7 -7 -6 -6 -6 -5 -4 -3 -2 -1 ------- Run | Yrd Mat Min Mat Min Exi Min Mat Gar Mat Gar Fac Gar Fac Fac Low Low Fac Fac Res Res Acc Traps Triggered 23 | . 1 . . . . . 1 7 1 2 . 3 1 1 . . 2 1 . 2 1 Indirectly . | . . . . . . . . . . . . . . . . . . . . . . Trap Hack Attempts 17 | . . . . . . . . . . 17 . . . . . . . . . . . Triggered 1 | . . . . . . . . . . 1 . . . . . . . . . . . Disarmed 10 | . . . 4 . . . . . . 1 . . . . . . 4 1 . . . Reprogrammed 2 | . . . . . . . . . . 2 . . . . . . . . . . . Reused . | . . . . . . . . . . . . . . . . . . . . . . Traps Extracted . | . . . . . . . . . . . . . . . . . . . . . . Installed . | . . . . . . . . . . . . . . . . . . . . . . Triggered . | . . . . . . . . . . . . . . . . . . . . . . Machines | -11 -10 -10 -9 -9 -9 -8 -8 -8 -8 -8 -7 -7 -7 -6 -6 -6 -5 -4 -3 -2 -1 ---------- Run | Yrd Mat Min Mat Min Exi Min Mat Gar Mat Gar Fac Gar Fac Fac Low Low Fac Fac Res Res Acc Machines Disabled 13 | . . . . . . . 1 3 . 8 . 1 . . . . . . . . . Max in Single Turn 1 | . . . . . . . 1 1 . 1 . 1 . . . . . . . . . Garrison Access 5 | . . . . . . . . . . . . . . 2 . . 1 . . 1 1 Garrison Relay 11 | . . . . . . . . 3 . 7 . 1 . . . . . . . . . Machines Repaired . | . . . . . . . . . . . . . . . . . . . . . . Machines Dismantled . | . . . . . . . . . . . . . . . . . . . . . . Machines Sabotaged . | . . . . . . . . . . . . . . . . . . . . . . Overloaded Fab Kills . | . . . . . . . . . . . . . . . . . . . . . . Hacking | -11 -10 -10 -9 -9 -9 -8 -8 -8 -8 -8 -7 -7 -7 -6 -6 -6 -5 -4 -3 -2 -1 --------- Run | Yrd Mat Min Mat Min Exi Min Mat Gar Mat Gar Fac Gar Fac Fac Low Low Fac Fac Res Res Acc Machines Accessed 54 | . 9 1 3 . 1 . 3 . 1 4 2 . 7 4 . . 4 6 3 4 2 Terminals 35 | . 7 . 3 . . . 2 . . 4 1 . 5 . . . 3 4 3 3 . Fabricators 5 | . . . . . . . . . . . . . 1 1 . . . 2 . . 1 Repair Stations . | . . . . . . . . . . . . . . . . . . . . . . Recycling Units 4 | . 2 . . . . . . . . . . . 1 1 . . . . . . . Scanalyzers . | . . . . . . . . . . . . . . . . . . . . . . Garrison Access 8 | . . . . . . . 1 . 1 . 1 . . 2 . . 1 . . 1 1 Total Hacks 122 | . 27 1 8 . 1 . 6 . 1 6 2 . 18 8 . . 6 22 4 10 2 Successful 60 | . 12 1 3 . 1 . 2 . 1 3 1 . 7 5 . . 5 11 4 3 1 Failed 60 | . 14 . 5 . . . 4 . . 3 1 . 10 3 . . 1 11 . 7 1 Catastrophic 8 | . 2 . . . . . . . . . . . 2 . . . . 1 . 3 . Database Lockouts 2 | . 1 . . . . . . . . . . . 1 . . . . . . . . Manual 45 | . 17 . 3 . 1 . 4 . . . . . 4 . . . 1 7 2 6 . Terminals 88 | . 21 . 8 . . . 5 . . 6 1 . 12 . . . 5 17 4 9 . Fabricators 14 | . . . . . . . . . . . . . 4 4 . . . 5 . . 1 Repair Stations . | . . . . . . . . . . . . . . . . . . . . . . Recycling Units 10 | . 6 . . . . . . . . . . . 2 2 . . . . . . . Scanalyzers . | . . . . . . . . . . . . . . . . . . . . . . Garrison Access 8 | . . . . . . . 1 . 1 . 1 . . 2 . . 1 . . 1 1 Terminal Hacks 40 | . 10 1 3 . 1 . 1 . . 3 . . 4 . . . 4 8 3 2 . Record 3 | . . . 2 . . . . . . . . . . . . . . . . 1 . Part Schematic 2 | . . . . . . . . . . . . . 1 . . . 1 . . . . Robot Analysis 3 | . 3 . . . . . . . . . . . . . . . . . . . . Open Door 1 | . . 1 . . . . . . . . . . . . . . . . . . . Level Access Points 2 | . . . . . . . . . . . . . . . . . . 1 1 . . Branch Access Points 1 | . 1 . . . . . . . . . . . . . . . . . . . . Emergency Access Points 1 | . . . . . . . . . . 1 . . . . . . . . . . . Terminal Index 1 | . 1 . . . . . . . . . . . . . . . . . . . . Unreport Threat 6 | . 2 . . . . . . . . . . . 2 . . . 1 1 . . . Locate Traps 5 | . 1 . . . . . . . . . . . 1 . . . 1 . 2 . . Disarm Traps 3 | . . . 1 . . . . . . . . . . . . . 1 1 . . . Recall Investigation 1 | . 1 . . . . . . . . . . . . . . . . . . . . Recall Reinforcements 1 | . . . . . . . . . . . . . . . . . . 1 . . . Hauler Manifests 1 | . . . . . . . . . . . . . . . . . . 1 . . . Registered Components 1 | . 1 . . . . . . . . . . . . . . . . . . . . Zone Layout 5 | . . . . . . . 1 . . . . . . . . . . 3 . 1 . Garrison Registry 1 | . . . . . . . . . . 1 . . . . . . . . . . . Security Stations 1 | . . . . . . . . . . 1 . . . . . . . . . . . Derelict Proto ID Bank 1 | . . . . . 1 . . . . . . . . . . . . . . . . Fabricator Hacks 7 | . . . . . . . . . . . . . 3 1 . . . 3 . . . Network Status 2 | . . . . . . . . . . . . . 1 . . . . 1 . . . Load Schematic 3 | . . . . . . . . . . . . . 1 1 . . . 1 . . . Build 2 | . . . . . . . . . . . . . 1 . . . . 1 . . . Repair Station Hacks . | . . . . . . . . . . . . . . . . . . . . . . Recycling Unit Hacks 2 | . . . . . . . . . . . . . . 2 . . . . . . . Process 1 | . . . . . . . . . . . . . . 1 . . . . . . . Retrieve Matter 1 | . . . . . . . . . . . . . . 1 . . . . . . . Scanalyzer . | . . . . . . . . . . . . . . . . . . . . . . Garrison Access Hacks 8 | . . . . . . . 1 . 1 . 1 . . 2 . . 1 . . 1 1 Unlock Access 3 | . . . . . . . 1 . 1 . 1 . . . . . . . . . . Seal Access 5 | . . . . . . . . . . . . . . 2 . . 1 . . 1 1 Unauthorized Hacks 3 | . 2 . . . . . . . . . . . . . . . . . 1 . . Terminals 1 | . . . . . . . . . . . . . . . . . . . 1 . . Assimilate 1 | . . . . . . . . . . . . . . . . . . . 1 . . Fabricators . | . . . . . . . . . . . . . . . . . . . . . . Repair Stations . | . . . . . . . . . . . . . . . . . . . . . . Recycling Units 2 | . 2 . . . . . . . . . . . . . . . . . . . . Tunnel 2 | . 2 . . . . . . . . . . . . . . . . . . . . Scanalyzers . | . . . . . . . . . . . . . . . . . . . . . . Garrison Access . | . . . . . . . . . . . . . . . . . . . . . . Data Cores Recovered 2 | . . . . . . . . . . . . . . . . . 1 . . 1 . Used 2 | . . . . . . . . . . . . . . . . . 1 . . 1 . Hacking Detections 32 | . 8 . 4 . . . 3 . . 1 1 . 6 1 . . 1 3 . 3 1 Full Trace Events 3 | . . . . . . . . . . . . . 1 1 . . . 1 . . . Feedback Events . | . . . . . . . . . . . . . . . . . . . . . . Feedback Blocked . | . . . . . . . . . . . . . . . . . . . . . . Robot Schematics Acquired . | . . . . . . . . . . . . . . . . . . . . . . Robots Built . | . . . . . . . . . . . . . . . . . . . . . . Authchips . | . . . . . . . . . . . . . . . . . . . . . . Time . | . . . . . . . . . . . . . . . . . . . . . . Total Robot Build Rating . | . . . . . . . . . . . . . . . . . . . . . . Part Schematics Acquired 2 | . . . . . . . . . . . . . 1 . . . 1 . . . . Parts Built 2 | . . . . . . . . . . . . . 1 . . . . 1 . . . Authchips . | . . . . . . . . . . . . . . . . . . . . . . Time 140 | . . . . . . . . . . . . . 73 . . . . 67 . . . Total Part Build Rating 7 | . . . . . . . . . . . . . 3 . . . . 4 . . . Parts Repaired . | . . . . . . . . . . . . . . . . . . . . . . Time . | . . . . . . . . . . . . . . . . . . . . . . Parts Recycled . | . . . . . . . . . . . . . . . . . . . . . . Recycled Matter . | . . . . . . . . . . . . . . . . . . . . . . Retrieved Matter . | . . . . . . . . . . . . . . . . . . . . . . Retrieved Components . | . . . . . . . . . . . . . . . . . . . . . . Parts Scanalyzed . | . . . . . . . . . . . . . . . . . . . . . . Part Schematics Acquired . | . . . . . . . . . . . . . . . . . . . . . . Parts Damaged . | . . . . . . . . . . . . . . . . . . . . . . Bothacking | -11 -10 -10 -9 -9 -9 -8 -8 -8 -8 -8 -7 -7 -7 -6 -6 -6 -5 -4 -3 -2 -1 ------------ Run | Yrd Mat Min Mat Min Exi Min Mat Gar Mat Gar Fac Gar Fac Fac Low Low Fac Fac Res Res Acc Used RIF Installer 2 | . . . . . . . . 1 . 1 . . . . . . . . . . . Alert ID Control 1 | . . . . . . . . . . 1 . . . . . . . . . . . Robots Hacked 7 | . . . . . . . . . . 2 . 5 . . . . . . . . . Non-combat . | . . . . . . . . . . . . . . . . . . . . . . Combat 7 | . . . . . . . . . . 2 . 5 . . . . . . . . . Robot Hacks Applied 8 | . . . . . . . . . . 2 . 6 . . . . . . . . . disrupt_area 1 | . . . . . . . . . . . . 1 . . . . . . . . . streamctrl_high 5 | . . . . . . . . . . 2 . 3 . . . . . . . . . formatsys_high 2 | . . . . . . . . . . . . 2 . . . . . . . . . Relay Couplers Released 43 | . . . . . . . . 12 . 28 . 3 . . . . . . . . . Machine Destruction 43 | . . . . . . . . 12 . 28 . 3 . . . . . . . . . Attached 6 | . . . . . . . . . . 3 . 2 1 . . . . . . . . Fabnet Peak Effective % . | . . . . . . . . . . . . . . . . . . . . . . Robots Rewired 6 | . . . . . . . . 3 . 3 . . . . . . . . . . . Allies Hacked . | . . . . . . . . . . . . . . . . . . . . . . Hacks Repelled . | . . . . . . . . . . . . . . . . . . . . . . Allies | -11 -10 -10 -9 -9 -9 -8 -8 -8 -8 -8 -7 -7 -7 -6 -6 -6 -5 -4 -3 -2 -1 -------- Run | Yrd Mat Min Mat Min Exi Min Mat Gar Mat Gar Fac Gar Fac Fac Low Low Fac Fac Res Res Acc Total Allies 13 | . . . . . . . . 3 . 5 . 5 . . . . . . . . . Largest Group 3 | . . . . . . . . 3 3 3 . 3 . . . . . . . . . Highest-Rated Group 72 | . . . . . . . . 72 72 54 . 48 . . . . . . . . . Highest-Rated Ally 24 | . . . . . . . . 24 24 18 . 16 . . . . . . . . . Total Orders 65 | . . . 5 15 4 . . . . . 4 . 9 . 2 . 9 . . . 17 STAY 5 | . . . . 4 . . . . . . . . . . . . . . . . 1 ROAM 1 | . . . . 1 . . . . . . . . . . . . . . . . . EXPLORE 31 | . . . 1 2 2 . . . . . 2 . 4 . 1 . 3 . . . 16 RETURN 28 | . . . 4 8 2 . . . . . 2 . 5 . 1 . 6 . . . . Ally Attacks 46 | . . . . . . . . 12 9 11 . 14 . . . . . . . . . Total Damage 855 | . . . . . . . . 179 221 317 . 138 . . . . . . . . . Kills 9 | . . . . . . . . 5 1 3 . . . . . . . . . . . Allies Corrupted . | . . . . . . . . . . . . . . . . . . . . . . Allies Melted 1 | . . . . . . . . . 1 . . . . . . . . . . . . Intel | -11 -10 -10 -9 -9 -9 -8 -8 -8 -8 -8 -7 -7 -7 -6 -6 -6 -5 -4 -3 -2 -1 ------- Run | Yrd Mat Min Mat Min Exi Min Mat Gar Mat Gar Fac Gar Fac Fac Low Low Fac Fac Res Res Acc Robot Analysis Total 3 | . 3 . . . . . . . . . . . . . . . . . . . . Derelict Logs Recovered 4 | . . 2 . . . . . . . . . . . . 1 1 . . . . . Drone Launches 50 | . . . 4 6 2 . . . . . 2 . 6 . 1 . 6 . . . 23 Drone Recoveries 30 | . . . 4 6 2 . . . . . 2 . 6 . . . 6 . . . 4 Exploration | -11 -10 -10 -9 -9 -9 -8 -8 -8 -8 -8 -7 -7 -7 -6 -6 -6 -5 -4 -3 -2 -1 ------------- Run | Yrd Mat Min Mat Min Exi Min Mat Gar Mat Gar Fac Gar Fac Fac Low Low Fac Fac Res Res Acc Turns Passed 12124 | 114 1988 409 1138 335 252 565 435 1199 258 1635 151 340 869 247 293 9 644 288 142 324 489 Spaces Moved 11738 | 66 1094 273 641 172 205 381 272 668 132 799 93 288 1462 598 716 29 1184 614 287 834 930 Core 91 | 13 . . . . . . . . . . . . . . . . . . . . 78 Treads 1977 | 53 542 1 39 . . . . 213 132 799 93 101 . . . . . . . . 4 Legs 1 | . . . . . . . . 1 . . . . . . . . . . . . . Wheels 2910 | . 552 272 602 172 205 381 272 454 . . . . . . . . . . . . . Hover . | . . . . . . . . . . . . . . . . . . . . . . Flight 6759 | . . . . . . . . . . . . 187 1462 598 716 29 1184 614 287 834 848 Fastest Speed 6 | 50 130 110 110 115 115 115 108 105 145 145 150 23 26 25 26 32 27 14 14 6 12 Average Speed 71 | 138 144 120 126 115 115 115 108 137 154 150 150 71 26 25 29 32 29 25 23 19 26 Slowest Speed 260 | 160 160 240 240 115 115 115 115 260 160 155 150 225 94 27 32 32 32 27 24 29 160 Overloaded Moves 555 | . . . . . . . . . . . . 63 . . . . . 91 10 179 212 Propulsion Burnouts 3 | . . . . . . . . . . . . 2 . . . . . . . 1 . Robots Hopped 47 | . . . . . . . . . . . . 1 9 3 . . 6 3 . 3 22 Cave-ins Triggered . | . . . . . . . . . . . . . . . . . . . . . . Exploration Rate (%) 38 | 4 97 64 44 29 87 53 24 69 15 68 3 33 35 16 80 9 37 12 12 25 32 Regions Visited 21 Branch Regions 6 Pre-discovered Areas 3 | . 2 . . . . . . . . . . . . . . 1 . . . . . Known Exits Taken 8 | . 1 . . . . . 1 . 1 . 1 . 1 . . . 1 1 1 . . Unknown Exits Taken 10 | 1 . 1 1 1 1 1 . . . . . . . 1 1 1 . . . 1 . Scrap Searched 2 | . . 1 . . . . . . . . . . . . 1 . . . . . . Spaces Dug 22 | . 2 . . . . . . . 1 . . . . . . . . . . 18 1 Terrain Destroyed 197 | . 28 . . . . . 84 40 1 23 . 2 . . . . . . . 18 1 Melee 3 | . 2 . . . . . . . 1 . . . . . . . . . . . . Projectile 22 | . . . . . . . . . . 3 . . . . . . . . . 18 1 AOE 172 | . 26 . . . . . 84 40 . 20 . 2 . . . . . . . . . Terrain Rammed . | . . . . . . . . . . . . . . . . . . . . . . Walls Destroyed . | . . . . . . . . . . . . . . . . . . . . . . Machines Disabled . | . . . . . . . . . . . . . . . . . . . . . . Actions | -11 -10 -10 -9 -9 -9 -8 -8 -8 -8 -8 -7 -7 -7 -6 -6 -6 -5 -4 -3 -2 -1 --------- Run | Yrd Mat Min Mat Min Exi Min Mat Gar Mat Gar Fac Gar Fac Fac Low Low Fac Fac Res Res Acc Total 14747 | 85 1351 321 871 285 220 505 388 872 175 1085 104 399 1913 687 794 28 1457 733 359 969 1146 Wait 1839 | . 109 8 121 95 13 120 75 54 8 53 . 43 376 81 59 . 190 61 70 94 209 Move 11624 | 65 1093 272 640 171 204 380 272 667 132 798 93 285 1442 591 715 28 1170 606 286 828 886 Hop 47 | . . . . . . . . . . . . 1 9 3 . . 6 3 . 3 22 Pick Up 145 | 11 29 9 13 . 1 . 6 10 6 26 2 4 8 . 2 . 3 2 1 5 7 Fast Attach 63 | . 4 1 4 . . 1 2 9 1 8 1 6 9 5 . . 8 1 . . 3 Attach 105 | 7 7 2 3 1 . . 4 2 . 15 3 11 17 . 4 . 3 5 1 10 10 Detach 38 | . 1 . 1 . . . . 1 . 4 2 . 14 . 4 . 2 2 . 5 2 Swap 144 | . 11 7 27 5 2 . 10 22 6 33 2 3 3 3 1 . 3 4 1 1 . Drop 128 | . 15 6 13 1 . 1 5 13 12 26 1 2 14 4 3 . 6 2 . 2 2 Fire 406 | 2 79 16 49 12 . 3 14 39 8 92 . 18 20 . 6 . 13 9 . 21 5 Melee 28 | . 3 . . . . . . 9 2 13 . 1 . . . . . . . . . Ram . | . . . . . . . . . . . . . . . . . . . . . . Kick . | . . . . . . . . . . . . . . . . . . . . . . Crush . | . . . . . . . . . . . . . . . . . . . . . . Escape Stasis 163 | . . . . . . . . 46 . . . 25 1 . . . 53 38 . . . Rewire . | . . . . . . . . . . . . . . . . . . . . . . Trap 17 | . . . . . . . . . . 17 . . . . . . . . . . . Miscellaneous . | . . . . . . . . . . . . . . . . . . . . . . Route ------- -11/Scrapyard -10/Materials (discovered 5 exits: *Mat x3 / *Min x2) -10/Mines -9/Materials -9/Mines -9/Exiles -8/Mines -8/Materials -8/Garrison (discovered 4 exits: *Mat x4) -8/Materials -8/Garrison (discovered 4 exits: *Fac x3 / [Mat]) -7/Factory -7/Garrison -7/Factory (discovered 2 exits: *Fac / *Low) -6/Factory -6/Lower Caves -6/Lower Caves -5/Factory (discovered 3 exits: *Fac x2 / Upp) -4/Factory (discovered 4 exits: *Res x4) -3/Research (discovered 3 exits: *Res x3) -2/Research -1/Access History --------- Turn | Location | Event 2 | -11/Scrapyard | Met Revision 17 12 | -11/Scrapyard | Discovered new exit (range 14) 115 | -11/Scrapyard | Entered Materials 118 | -10/Materials | Discovered new exit (range 15) 313 | -10/Materials | Build established: Mutant 832 | -10/Materials | Discovered new exit (range 9) 901 | -10/Materials | Discovered new exit (range 3) 1286 | -10/Materials | Central database locked down 1357 | -10/Materials | Discovered new exit (range 10) 1401 | -10/Materials | Core integrity fell below 50% 1558 | -10/Materials | Discovered new exit (range 16) 2058 | -10/Materials | Identified exit to Mines 2103 | -10/Materials | Entered Mines 2106 | -10/Mines | Found the Drone Emporium 2113 | -10/Mines | Found Prototype Device 2138 | -10/Mines | Learned 2 Materials zone layouts 2146 | -10/Mines | Learned Materials terminal intel 2455 | -10/Mines | Discovered new exit (range 7) 2512 | -10/Mines | Entered Materials 2512 | -9/Materials | Evolved 2 slots: Utility x2 2514 | -9/Materials | Loaded intel: 12 terminal locations 2706 | -9/Materials | Identified Sensor Drone Bay 2787 | -9/Materials | Build established: Scavenger-Mutant 3593 | -9/Materials | Discovered new exit (range 12) 3650 | -9/Materials | Entered Mines 3980 | -9/Mines | Deemed a non-threat by the Exiles lab entrance 3980 | -9/Mines | Discovered new exit (range 5) 3985 | -9/Mines | Entered Exiles 4015 | -9/Exiles | Met 8R-AWN 4035 | -9/Exiles | Met EX-HEX 4069 | -9/Exiles | Met EX-BIN 4081 | -9/Exiles | Aligned with FarCom system 4082 | -9/Exiles | Given EX-Vault access code 4110 | -9/Exiles | Opened EX-Vault 4128 | -9/Exiles | Found Cloak of Protection 4155 | -9/Exiles | Warned to stay clear of 0b10 Research branches 4186 | -9/Exiles | Met EX-DEC 4224 | -9/Exiles | Discovered new exit (range 14) 4237 | -9/Exiles | Left Exiles lab with Cloak of Protection 4237 | -9/Exiles | Entered Mines 4526 | -8/Mines | Build established: Scavenger-Skirmisher 4773 | -8/Mines | Discovered new exit (range 7) 4802 | -8/Mines | Entered Materials 4802 | -8/Materials | Evolved 2 slots: Propulsion x2 5093 | -8/Materials | Build established: Scavenger-Mutant 5237 | -8/Materials | Identified exit to Garrison 5237 | -8/Materials | Entered Garrison 5265 | -8/Garrison | Triggered checkpoint 5330 | -8/Garrison | Garrison Relay disabled 5389 | -8/Garrison | Triggered checkpoint 5469 | -8/Garrison | Triggered checkpoint 5561 | -8/Garrison | Destroyed 7 combat bots 5632 | -8/Garrison | Discovered new exit (range 14) 5707 | -8/Garrison | Triggered checkpoint 5771 | -8/Garrison | Garrison Relay disabled 5951 | -8/Garrison | Discovered new exit (range 10) 6037 | -8/Garrison | Triggered checkpoint 6179 | -8/Garrison | Triggered checkpoint 6209 | -8/Garrison | Discovered new exit (range 6) 6313 | -8/Garrison | Triggered checkpoint 6321 | -8/Garrison | Triggered checkpoint 6375 | -8/Garrison | Triggered checkpoint 6390 | -8/Garrison | Discovered new exit (range 12) 6405 | -8/Garrison | Installed Relay Interface Framework 6436 | -8/Garrison | Entered Materials 6436 | -8/Materials | Accompanied by 3 allies 6666 | -8/Materials | Garrison activated, responded to threat 6694 | -8/Materials | Identified exit to Garrison 6694 | -8/Materials | Entered Garrison 6704 | -8/Garrison | Lost 3 allies 6741 | -8/Garrison | Triggered checkpoint 6769 | -8/Garrison | Garrison Relay disabled 6920 | -8/Garrison | Build established: Mutant 7207 | -8/Garrison | Triggered checkpoint 7210 | -8/Garrison | Triggered checkpoint 7219 | -8/Garrison | Triggered checkpoint 7299 | -8/Garrison | Destroyed 12 combat bots 7336 | -8/Garrison | Learned Factory security intel 7348 | -8/Garrison | Discovered new exit (range 4) 7378 | -8/Garrison | Discovered new exit (range 58) 7378 | -8/Garrison | Discovered new exit (range 38) 7378 | -8/Garrison | Discovered new exit (range 16) 7378 | -8/Garrison | Discovered new exit (range 21) 7644 | -8/Garrison | Triggered checkpoint 7717 | -8/Garrison | Garrison Relay disabled 7739 | -8/Garrison | Build established: Scavenger-Mutant 7777 | -8/Garrison | Expanded RIF knowledge: Alert ID Control 7928 | -8/Garrison | Triggered checkpoint 7964 | -8/Garrison | Core integrity fell below 50% 7983 | -8/Garrison | Lost 3 allies 8094 | -8/Garrison | Garrison Relay disabled 8134 | -8/Garrison | Garrison Relay disabled 8197 | -8/Garrison | Garrison Relay disabled 8202 | -8/Garrison | Garrison Relay disabled 8224 | -8/Garrison | Garrison Relay disabled 8329 | -8/Garrison | Entered Factory 8329 | -7/Factory | Evolved 2 slots: Utility x2 8480 | -7/Factory | Identified exit to Garrison 8480 | -7/Factory | Entered Garrison 8532 | -7/Garrison | Triggered checkpoint 8538 | -7/Garrison | Build established: Bothacker-Mutant 8561 | -7/Garrison | Garrison Relay disabled 8652 | -7/Garrison | Triggered checkpoint 8655 | -7/Garrison | Triggered checkpoint 8696 | -7/Garrison | Lost 4 allies 8699 | -7/Garrison | Core integrity fell below 50% 8728 | -7/Garrison | Lost 14 parts (2p4n3u5w) 8797 | -7/Garrison | Lost 3 parts (2n1u) 8817 | -7/Garrison | Discovered new exit (range 10) 8818 | -7/Garrison | Triggered checkpoint 8820 | -7/Garrison | Entered Factory 8841 | -7/Factory | Discovered new exit (range 40) 8859 | -7/Factory | Identified exit to Lower Caves 9349 | -7/Factory | Fabricated Hacking Suite? 9362 | -7/Factory | Build established: Scavenger-Sprinter 9424 | -7/Factory | Central database locked down 9667 | -7/Factory | Discovered new exit (range 16) 9684 | -7/Factory | Identified exit to Factory 9689 | -7/Factory | Entered another Factory area 9689 | -6/Factory | Evolved 2 slots: Power x1, Propulsion x1 9936 | -6/Factory | Discovered new exit (range 3) 9936 | -6/Factory | Entered Lower Caves 9970 | -6/Lower Caves | Build established: Hacker-Sprinter 9979 | -6/Lower Caves | Learned location of 1 exit from Factory 10223 | -6/Lower Caves | Discovered new exit (range 12) 10229 | -6/Lower Caves | Entered another Lower Caves area 10234 | -6/Lower Caves | Discovered new exit (range 14) 10235 | -6/Lower Caves | Learned location of Zion (-6) 10238 | -6/Lower Caves | Entered Factory 10238 | -5/Factory | Evolved 2 slots: Propulsion x1, Utility x1 10239 | -5/Factory | Identified exit to Upper Caves 10371 | -5/Factory | Discovered new exit (range 15) 10869 | -5/Factory | Discovered new exit (range 16) 10877 | -5/Factory | Identified exit to Factory 10882 | -5/Factory | Entered another Factory area 10882 | -4/Factory | Evolved 2 slots: Utility x2 11076 | -4/Factory | Discovered new exit (range 15) 11126 | -4/Factory | Fabricated Cld. VTOL Module? 11152 | -4/Factory | Identified exit to Research 11170 | -4/Factory | Entered Research 11170 | -3/Research | Evolved 2 slots: Utility x2 11178 | -3/Research | Identified exit to Research 11192 | -3/Research | Spotted B-86 Titan 11196 | -3/Research | Build established: Wizard-Sprinter 11312 | -3/Research | Entered another Research area 11312 | -2/Research | Evolved 2 slots: Utility x2 11322 | -2/Research | Spotted B-90 Cyclops 11549 | -2/Research | Discovered new exit (range 12) 11560 | -2/Research | Spotted B-90 Cyclops 11612 | -2/Research | Lost 3 parts (2n1u) 11636 | -2/Research | Entered Access 11636 | -1/Access | Evolved 2 slots: Utility x2 11666 | -1/Access | Lost 4 parts (3n1u) 12048 | -1/Access | Lost 11 parts (2p4n4u1w) 12084 | -1/Access | Spotted B-99 Colossus 12086 | -1/Access | Core integrity fell below 50% 12123 | -1/Access | Core integrity fell below 20% 12125 | -1/Access | Self-destructed Last Messages --------------- 12089_ Fusion Compressor destroyed. 12089_ Critical hit (Burn: +37). 12092_ Hacking Suite destroyed. 12096_ Slug penetrates Hyperwave Decoder. 12096_ Penetrated by Slug. 12100_ Triggered Segregator Trap. 12100_ Arcs of energy rise from the floor. 12100_ System Shield blown off. 12103_ System corrupted: Matter fused (-9). 12114_ ALERT: Suspicious intruders detected, dispatching Cutter reinforcements to area. 12119_ Knocked back. 12119_ Hacking Suite destroyed. 12119_ Knocked back. 12122_ System corrupted: Substantial component data lost. 12122_ The unstable cave ceiling collapses. 12123_ U-05 Engineer destroyed. 12123_ Penetrated by Slug. 12123_ Knocked back. Map ----- +----------------------------------------------------+ | ?????????????????????????????????????????????????? | | ?????????????????????????????????????????????????? | | ?????????????????????????????????????????????????? | | ?????????????????????????????????????????????????? | | ?????????????????????????????????????????????????? | | ?????????????????????????????????????????????????? | | ?????????????????????????????????????????????????? | | ?????????????????????????????????????????????????? | | ?????????????????????????????????????????????????? | | ?????????????????????????????????????????????????? | | ?????????????????????????????????????????????????? | | ?????????????????????????????????????????????????? | | ???????????????????????????#?###?????????????????? | | ??????????????????????????? #?????????????????? | | ?????????????????????????? #?????????????????? | | ?????????????????????????? #?????????????????? | | ?????????????????????????? =#?????????????????? | | ??????????????? ?# ????" #?????????????????? | | ????????????# # ?"""" #?????????????????? | | ????????????# # """"" #?????????????????? | | ????????????# # """"" #?????????????????? | | ????????????# # """" #?????????????????? | | ????????????# #! " #?????????????????? | | ?????????"??# #?? ???????????????????? | | ???????"R ??# #???? ?????????????????????? | | ????# """ ?# #??####@#######+###????????????? | | ????# "" ?# #### c ?????????? | | ????# # % ?????????? | | ????# # ?????????? | | ????+ ??????????? | | ????# ! ! ??????????? | | ????????#### c !% ???????????? | | ???????????## ### * u ??????????? | | ????????????# ## #########???????????? | | ????????????# # ### #???????????????????? | | ???????########+ ### #???????????????????? | | ???????# ## #???????????????????? | | ???????# # gg#??????????????????? | | ???????# ! # g #??????????????????? | | ???????# # g #??????????????????? | | ???????# # g #??????????????????? | | ???????# + H +??????????????????? | | ???????# #? ???????????????????? | | ???????# #? ???????????????????????? | | ???????# #????????????????????????????? | | ???????# #????????????????????????????? | | ???????# #????????????????????????????? | | ???????# ]#????????????????????????????? | | ???????#######+########??????????????????????????? | | ?????????????# #?? #??????????????????????????? | +----------------------------------------------------+ Best States ------------- Heat Dissipation 52 Energy Generation 27 Energy Capacity 360 Matter Stores 422 Matter Capacity 500 Sight Range 22 Robot Scan Range 14 Terrain Scan Density 10 Jamming Range 12 Cloak Strength 5 Additional Mass Support 9 Armor Coverage 300 Core Shielding 20 Evasion (%) 74 Targeting Accuracy 11 Recoil Reduction 4 Offensive Hacking 40 Defensive Hacking 52 Relay Coupler Types 2 Relay Coupler Value 55 Item Schematics ----------------- Hacking Suite | -7/Factory | Hacked Cld. VTOL Module | -5/Factory | Hacked Robot Schematics ------------------ None Fabricated ------------ Hacking Suite | x1 | -7/Factory Cld. VTOL Module | x1 | -4/Factory Alien Tech Used ----------------- None Achievements -------------- Armchair Analyst Brute Force Dynamic Key Hehehe Infiltrator Prolific Hacker Release The Drones! Speed Demon Whoosh! Challenges ------------ None Game ------ Seed LightpackShadeCoupler Manual? 0 Play Time 05:20:09 Cumulative 36.9 hours Start 2025.05.04 @ 15:47:17 End 2025.05.05 @ 23:29:12 Sessions 6 Manual Loads 0 Difficulty Rogue Special Mode None Game No. 26 Rogue 26 Adventurer 0 Explorer 0 Win Type - Total 0 Types 0/0/0/0/0/0/0/0/0 Lore% 11 Gallery% 29 Achievement% 33 Wizard Run 0 Options --------- Layout 1 ASCII 0 Keyboard 0 Movement Mouse Keybinds 0 Fullscreen 1 Font 32/SmallcapsGlow Map View 50x35 Zoom Use 0% Tactical HUD 1 Map Filters NONE Filters NONE Steam 1 RUN: 81d86530-33a1-4271-ac76-3d95c99ea8df